Cogmind - Beta 15 @@@ ROGUE MODE // 2025.06.27 @ 12:54:47 Player: PoggyBison Result: Destroyed by X-77 Beamer with Gatling Laser Performance ------------- Evolutions (6) 3000 Regions Visited (12) 2400 Robots Destroyed (112) 560 Value Destroyed (3021) 3021 Prototype IDs (2) 40 Alien Tech Used (0) 0 Bonus (1730) 1730 TOTAL SCORE: 10751 Bonus ------- High Alert Combat Kills 254 Follower Combat Kills 1360 Entered DSFs 500 Friendly Fire -384 Cogmind --------- Core Integrity 0/1150 Matter 134/300 Energy 100/100 System Corruption 0% Temperature Cool (18) Movement Core (50) Location -4/DSF Parts ------- > --- POWER (2) -------- (None) > --- PROPULSION (7) --- (None) > --- UTILITY (7) ------ (None) > --- WEAPON (3) ------- (None) > --- INVENTORY (5) ---- Heavy Mass Driver Heavy Mass Driver Peak State ------------ > --- POWER ------------ Micro Fission Core Antimatter Reactor > --- PROPULSION ------- Heavy Treads Heavy Treads Heavy Treads > --- UTILITY ---------- Improved Cooling System Triangulator Improved Sensor Array Improved Heavy Armor Plating Layered Medium Armor Plating > --- WEAPON ----------- Plasma Rifle Enhanced Gauss Cannon Heavy Missile Launcher > --- INVENTORY -------- Spiked Medium Treads Spiked Medium Treads Matter Compressor Magnetic Acceleration Cannon [Rating: 93] Favorites ----------- Power Antimatter Reactor Engine Angular Momentum Engine Power Core Light Nuclear Core Reactor Antimatter Reactor Propulsion Heavy Treads Treads Heavy Treads Leg Aluminum Leg Wheel Wheel Hover Unit Improved Gravmag System Utility Medium Storage Unit Device Improved Sensor Array Storage Medium Storage Unit Processor Improved Targeting Computer Hackware Hacking Suite Protection Layered Medium Armor Plating Weapon Magnetic Acceleration Cannon Energy Gun Gatling Laser Ballistic Gun Heavy Assault Rifle Ballistic Cannon Magnetic Acceleration Cannon Launcher Heavy Missile Launcher Build | -11 -10 -9 -8 -7 -6 -6 -6 -6 -6 -5 -4 -4 ------- Run | Yrd Mat Mat Mat Fac Fac Was Fac Low Low Fac Fac DSF Slots Evolved 12 | . . 2 2 2 2 . . . . 2 2 . Power 1 | . . . . 1 . . . . . . . . Propulsion 5 | . . 2 1 . 1 . . . . . 1 . Utility 5 | . . . 1 1 1 . . . . 1 1 . Weapon 1 | . . . . . . . . . . 1 . . Parts Attached 121 | 7 5 15 29 14 8 14 10 5 . 10 . 4 Power 21 | 1 1 3 2 3 3 4 1 . . 1 . 2 Engine 9 | 1 1 3 2 . 1 . 1 . . . . . Core 6 | . . . . 3 2 . . . . 1 . . Reactor 6 | . . . . . . 4 . . . . . 2 Propulsion 31 | 2 2 5 13 1 1 3 . 1 . 3 . . Treads 9 | . . . 3 . 1 3 . 1 . 1 . . Leg 6 | . . . 5 1 . . . . . . . . Wheel 14 | 2 2 5 5 . . . . . . . . . Hover 2 | . . . . . . . . . . 2 . . Flight . | . . . . . . . . . . . . . Utility 44 | 2 2 2 6 6 3 5 9 2 . 5 . 2 Device 14 | 1 . . 1 1 2 1 4 . . 2 . 2 Storage 5 | 1 1 1 . 1 . . . . . 1 . . Processor 3 | . . . 2 . . . 1 . . . . . Hackware 3 | . . . . 1 . . 1 . . 1 . . Protection 19 | . 1 1 3 3 1 4 3 2 . 1 . . Artifact . | . . . . . . . . . . . . . Weapon 25 | 2 . 5 8 4 1 2 . 2 . 1 . . Energy Gun 9 | 2 . . 3 2 1 . . 1 . . . . Energy Cannon . | . . . . . . . . . . . . . Ballistic Gun 5 | . . 3 . 2 . . . . . . . . Ballistic Cannon 5 | . . . 2 . . 2 . . . 1 . . Launcher 6 | . . 2 3 . . . . 1 . . . . Special Weapon . | . . . . . . . . . . . . . Impact Weapon . | . . . . . . . . . . . . . Slashing Weapon . | . . . . . . . . . . . . . Piercing Weapon . | . . . . . . . . . . . . . Special Melee Weapon . | . . . . . . . . . . . . . Unidentified Prototypes . | . . . . . . . . . . . . . Parts Lost 44 | . . 10 6 2 13 . . . . 10 . 3 Power 7 | . . 1 1 . 2 . . . . 2 . 1 Propulsion 21 | . . 6 3 1 6 . . . . 3 . 2 Utility 8 | . . 1 1 . 4 . . . . 2 . . Weapon 8 | . . 2 1 1 1 . . . . 3 . . Highest Loss Streak 12 | . . 7 2 1 12 . . . . 8 . 3 To Critical Strikes . | . . . . . . . . . . . . . Average Backups 6 | 4 9 8 9 9 9 4 4 4 5 5 2 2 Power . | . 1 1 1 1 . . . . . . . . Propulsion 1 | 3 5 2 . . . . 1 1 2 2 . . Utility 2 | . 2 3 4 3 4 1 1 1 2 2 2 2 Weapon 2 | . . 1 2 4 4 2 2 1 1 . . . Tool/Special . | . . . . . . . . . . . . . Unused Backups 38 | 4 . 3 12 4 6 2 . . . 6 . 1 Power 6 | . . 1 2 1 1 1 . . . . . . Propulsion 6 | 3 . . 1 1 . . . . . 1 . . Utility 17 | . . 2 5 2 1 1 . . . 5 . 1 Weapon 9 | 1 . . 4 . 4 . . . . . . . Tool/Special . | . . . . . . . . . . . . . Average Slot Usage (%) 79 | . 99 87 88 99 88 49 65 77 73 72 15 10 Engine 5 | . 14 11 8 7 1 . 4 6 6 1 . . Core 1 | . . . . 7 11 . . . . 3 . . Reactor 3 | . . . . . . 11 7 6 6 3 . . Treads 11 | . . . 6 . 4 14 20 20 20 16 . . Leg 7 | . . . 3 37 26 . . . . . . . Wheel 7 | . 28 38 25 . . . . . . . . . Device 8 | . 11 . 1 2 11 . 5 17 13 18 5 3 Storage 4 | . 14 12 9 8 6 . . . . 1 . . Processor 1 | . . . 7 4 . . . . . . . . Protection 9 | . 1 7 8 9 5 10 11 12 13 8 . . Energy Gun 5 | . 28 1 9 9 12 . . 1 6 4 . . Ballistic Cannon 6 | . . . 4 . . 11 13 10 3 4 . . Launcher 2 | . . 7 4 4 . . . . 2 4 . . Peak Build Rating 93 | 7 8 17 29 36 48 89 89 83 83 93 13 17 Average Rating 56 | 6 7 12 24 32 42 73 85 82 82 85 13 10 On Entrance 34 | . 7 8 7 25 35 2 89 82 83 81 13 13 Naked Turns 38 | . . . . . 7 12 . . . 1 . 18 Heaviest Build 128 | 13 18 28 38 52 44 95 98 70 66 128 1 14 Greatest Support 210 | 20 20 40 58 55 55 210 210 140 70 140 20 3 Greatest Overweight (x) 4 | . . 1 3 1 1 . . . . 1 . 4 Average Overweight (x) . | . . . . . . . . . . . . . Largest Inventory Capacity 25 | 8 10 10 10 10 10 5 5 5 5 25 5 5 Average Capacity 7 | 7 9 10 10 10 9 5 5 5 5 9 5 5 Most Carried 14 | 8 10 10 10 10 10 5 5 5 5 14 2 5 Average Carried 6 | 5 9 8 9 9 9 4 4 4 4 6 2 2 Final Capacity 10 | 8 10 10 10 10 5 5 5 5 5 5 5 5 Final Carried 10 | 8 10 9 10 10 5 5 5 5 5 2 2 4 Class Distribution -------------------- 69% | Scavenger-Mutant 21% | Mutant 5% | Scavenger-Tank 3% | Tank Dominant Class ---------------- Mutant | -10/Materials Mutant | -9/Materials Mutant | -8/Materials Scavenger-Mutant | -7/Factory Scavenger-Mutant | -6/Factory Scavenger-Mutant | -6/Waste Scavenger-Mutant | -6/Factory Scavenger-Mutant | -6/Lower Caves Scavenger-Mutant | -6/Lower Caves Scavenger-Tank | -5/Factory Scavenger-Tank | -4/Factory Mutant | -4/DSF Resources | -11 -10 -9 -8 -7 -6 -6 -6 -6 -6 -5 -4 -4 ----------- Run | Yrd Mat Mat Mat Fac Fac Was Fac Low Low Fac Fac DSF Matter Collected 2605 | 270 114 109 818 399 55 146 198 295 62 139 . . Remotely . | . . . . . . . . . . . . . Salvage Created 2773 | 205 106 321 933 489 137 . 64 186 67 265 . . Parts 190 | 16 2 24 69 41 9 . 1 10 . 18 . . Haulers Intercepted 2 | . . . 2 . . . . . . . . . Recyclers Shooed 3 | . 1 . 1 1 . . . . . . . . Parts Field Recycled 19 | . . . . . . . . . . 4 . 15 Retrieved Matter 159 | . . . . . . . . . . 60 . 99 Parts Self-Destructed 6 | . . . . . . . . 6 . . . . Prevented 1 | . . . . . . . . . 1 . . . Kills | -11 -10 -9 -8 -7 -6 -6 -6 -6 -6 -5 -4 -4 ------- Run | Yrd Mat Mat Mat Fac Fac Was Fac Low Low Fac Fac DSF Combat Hostiles Destroyed 70 | . 2 15 20 5 3 . 3 7 3 12 . . Guns 20 | . 1 1 4 5 3 . . 1 1 4 . . Cannons 18 | . . . 6 . . . 3 6 . 3 . . AOE 30 | . . 14 10 . . . . . 2 4 . . Classes Destroyed 17 | 3 1 2 4 1 1 . 2 2 . 1 . . Worker 12 | 2 . 1 4 4 . . . . . 1 . . Builder 9 | . . . 3 5 1 . . . . . . . Tunneler 6 | 5 . 1 . . . . . . . . . . Hauler 2 | . . . 2 . . . . . . . . . Recycler 6 | 1 1 . 2 2 . . . . . . . . Operator 2 | . . . . . 1 . . . . 1 . . Watcher 2 | . . . . . . . . . . 2 . . Swarmer 29 | . 2 7 4 . 2 . 1 4 . 9 . . Grunt 24 | . . 5 10 1 1 . 1 1 2 3 . . Duelist 2 | . . . 1 . . . . . 1 . . . Sentry 9 | . . 3 4 1 . . . 1 . . . . Specialist 1 | . . . . . . . 1 . . . . . Hunter 2 | . . . 1 1 . . . . . . . . Programmer 2 | . . . . 2 . . . . . . . . Surgeon 1 | . . . . . . . . 1 . . . . Martyr 2 | . . . . . . . 1 1 . . . . Mutant 1 | . . . . . . . . 1 . . . . Best Kill Streak 11 | 3 2 11 4 3 3 . 1 3 3 9 . . Combat Bots Only 10 | . 2 10 4 3 3 . 1 3 3 9 . . Max Kills in Single Turn 4 | 1 1 3 4 2 1 . 2 1 1 3 . . Gunslinging . | . . . . . . . . . . . . . Exploded 3 | . . 3 3 . . . . . 1 1 . . Melee . | . . . . . . . . . . . . . Uniques/NPCs Destroyed . | . . . . . . . . . . . . . Combat | -11 -10 -9 -8 -7 -6 -6 -6 -6 -6 -5 -4 -4 -------- Run | Yrd Mat Mat Mat Fac Fac Was Fac Low Low Fac Fac DSF Hostile Shots Fired 922 | . 30 103 122 114 168 . 5 101 7 150 . 122 Missed 298 | . 7 36 38 51 47 . 4 32 1 41 . 41 Hits 624 | . 23 67 84 63 121 . 1 69 6 109 . 81 Projectile 624 | . 23 67 84 63 121 . 1 69 6 109 . 81 AOE 2 | . . . . 1 . . . . . 1 . . Critical Strikes 13 | . . 4 2 1 1 . . . 1 3 . 1 Actively Blocked 2 | . . 1 . . . . . . . 1 . . Damage Taken 9511 | . 191 903 1325 769 1663 . 58 795 130 2304 . 1373 Core 2307 | . 18 179 186 21 416 . . 60 38 238 . 1151 Absorbed by Shields 112 | . . . . . 104 . . . . 8 . . Reduced by Siege Mode 2 | . . . . . . . . . 2 . . . Redirected to Shielding 184 | . . 51 . . . . 30 . . 103 . . Regen/Repaired (Parts) 66 | . . . . . . 37 6 23 . . . . Core Remaining (%) 75 | 100 92 55 66 97 . . . . 39 76 . . Volleys Fired 207 | 14 10 19 68 30 10 . 8 20 6 22 . . Largest 3 | 2 2 2 2 2 2 . 2 2 2 3 . . Hottest 165 | 100 100 72 110 160 165 . 88 119 114 161 . . Shots Fired 366 | 28 20 28 107 53 20 1 17 38 10 44 . . Gun 215 | 28 20 12 53 53 20 . . 2 5 22 . . Cannon 112 | . . . 43 . . 1 17 34 . 17 . . Launcher 39 | . . 16 11 . . . . 2 5 5 . . Special . | . . . . . . . . . . . . . Kinetic 137 | . . 12 43 13 . 1 17 34 . 17 . . Thermal 143 | 28 20 . 6 40 20 . . 2 5 22 . . Explosive 39 | . . 16 11 . . . . 2 5 5 . . Electromagnetic 47 | . . . 47 . . . . . . . . . Robot Hit Streak 14 | 7 2 4 14 9 6 . 3 12 14 7 . . Robot Miss Streak 8 | 3 4 4 8 5 5 1 3 5 1 3 . . Penetration Max . | . . . . . . . . . . . . . Secondary Targets 4 | . . . . 2 2 . . . . . . . Max Gunslinging Chain 1 | . . . . 1 1 . . . . . . . Shots Hit Robots 225 | 17 9 14 64 42 16 . 9 21 9 24 . . Core Hits 185 | 9 3 26 49 32 15 1 6 12 9 23 . . Critical Kills . | . . . . . . . . . . . . . Critical Parts Destroyed . | . . . . . . . . . . . . . Critical Strikes 13 | 3 3 . 1 . . . 1 2 . 3 . . Burn 8 | 3 3 . . . . . . . . 2 . . Blast 5 | . . . 1 . . . 1 2 . 1 . . Melee Attacks . | . . . . . . . . . . . . . Impact . | . . . . . . . . . . . . . Slashing . | . . . . . . . . . . . . . Piercing . | . . . . . . . . . . . . . Sneak Attacks . | . . . . . . . . . . . . . Combat Hostiles . | . . . . . . . . . . . . . Follow-up Attacks . | . . . . . . . . . . . . . Damage Inflicted 8841 | 227 125 1237 2653 862 413 35 282 749 469 1789 . . Guns 2928 | 227 125 95 786 862 412 . . 44 88 289 . . Cannons 1676 | . . . 402 . . 35 282 681 . 276 . . Explosions 4209 | . . 1117 1463 . . . . 24 381 1224 . . Melee . | . . . . . . . . . . . . . Ramming 28 | . . 25 2 . 1 . . . . . . . Kinetic 1935 | . . 95 402 164 . 35 282 681 . 276 . . Thermal 2549 | 227 125 . 288 698 412 . . 44 88 667 . . Explosive 3651 | . . 1063 1337 . . . . 24 381 846 . . Electromagnetic 678 | . . 54 624 . . . . . . . . . Impact . | . . . . . . . . . . . . . Slashing . | . . . . . . . . . . . . . Piercing . | . . . . . . . . . . . . . Highest Corruption 3 | . . 1 . 3 1 1 1 2 2 1 . . Average Corruption 1 | . . 1 . 2 1 1 1 1 2 1 . . Corruption Purged . | . . . . . . . . . . . . . Corruption Blocked . | . . . . . . . . . . . . . Effects 37 | . . . . 4 1 1 12 11 3 5 . . Message Errors 7 | . . . . . . . 4 2 . 1 . . Matter Fused 8 | . . . . 2 1 . . 4 . 1 . . Heat Flow Errors 6 | . . . . . . . 4 2 . . . . Energy Discharges 3 | . . . . . . . 2 1 . . . . Parts Fused 2 | . . . . . . . 1 . 1 . . . Data Loss (minor) 6 | . . . . 1 . . . 1 2 2 . . Data Loss (major) 1 | . . . . . . . . 1 . . . . Misfires 2 | . . . . . . 1 1 . . . . . Weapon Failures 2 | . . . . 1 . . . . . 1 . . Overload Shots . | . . . . . . . . . . . . . Overflow Damage 230 | . . 32 27 . . . 26 5 33 107 . . Projectiles 55 | . . . 9 . . . 26 5 . 15 . . Explosions 170 | . . 27 18 . . . . . 33 92 . . Melee 5 | . . 5 . . . . . . . . . . Knockbacks 15 | . . . 4 . . . 3 6 . 2 . . Impact . | . . . . . . . . . . . . . Kinetic 15 | . . . 4 . . . 3 6 . 2 . . Secondary . | . . . . . . . . . . . . . Self-Inflicted Damage 423 | . . 87 157 . . . . . 17 162 . . Shots 10 | . . 2 5 . . . . . 1 2 . . Rammed 7 | . . 1 1 . 4 . 1 . . . . . Targets Rammed 7 | . . 1 1 . 4 . 1 . . . . . Kicked . | . . . . . . . . . . . . . Crushed . | . . . . . . . . . . . . . Highest Temperature 434 | 156 252 27 434 287 246 169 242 265 332 27 . 11 Average Temperature 72 | 55 99 8 107 58 86 47 62 79 167 12 . 11 Received Heat Transfer 1941 | . . 264 405 102 195 . 12 141 72 300 . 450 Effects 8 | . . . 6 1 . . . . 1 . . . Shutdowns 1 | . . . 1 . . . . . . . . . Energy Bleed 2 | . . . 1 1 . . . . . . . . Interference 3 | . . . 3 . . . . . . . . . Matter Decay 2 | . . . 1 . . . . . 1 . . . Siege Activations 1 | . . . . . . . . . 1 . . . Total Turns 13 | . . . . . . . . . 13 . . . Longest Duration 13 | . . . . . . . . . 13 . . . Martial Activations . | . . . . . . . . . . . . . Shielding Activations . | . . . . . . . . . . . . . Robots Disrupted . | . . . . . . . . . . . . . Combat Hostiles . | . . . . . . . . . . . . . Robots Corrupted . | . . . . . . . . . . . . . Combat Hostiles . | . . . . . . . . . . . . . Parts Fried 2 | . . . 2 . . . . . . . . . Impact Corruptions 1 | . . 1 . . . . . . . . . . Robots Melted 2 | . 1 . . . . . . . . 1 . . Combat Hostiles 2 | . 1 . . . . . . . . 1 . . Parts Melted 5 | 2 1 . . 1 1 . . . . . . . Heat Transferred 5755 | 888 592 . 525 1525 875 . . 100 200 1050 . . Parts Sabotaged . | . . . . . . . . . . . . . Parts Stolen . | . . . . . . . . . . . . . Parts Stripped . | . . . . . . . . . . . . . Power Chain Reactions 3 | . . . 3 . . . . . . . . . Alert | -11 -10 -9 -8 -7 -6 -6 -6 -6 -6 -5 -4 -4 ------- Run | Yrd Mat Mat Mat Fac Fac Was Fac Low Low Fac Fac DSF Maximum Alert Level 5 | . . 1 2 1 . . 5 . . 2 1 . Low Security (%) 61 | 100 100 58 39 89 100 100 60 . . . . 100 Level 1 17 | . . 41 27 10 . . 1 . . 50 100 . Level 2 16 | . . . 33 . . . 17 . . 49 . . Level 3 . | . . . . . . . 1 . . . . . Level 4 3 | . . . . . . . 16 . . . . . Level 5 . | . . . . . . . 2 . . . . . High Security . | . . . . . . . . . . . . . Max Security . | . . . . . . . . . . . . . Peak Influence 1646 | 10 65 380 541 237 41 . 1646 . . 654 262 183 Initial 331 | . 3 8 105 237 29 . . . . 331 257 183 Average 227 | 2 26 145 283 91 6 . 391 . . 432 260 176 Influence Increases 4675 | 40 70 520 857 208 117 . 2054 153 70 581 5 . Destroy 0b10 Robot/C 2100 | . 40 300 400 100 60 . 760 140 60 240 . . Destroy 0b10 Robot/NC 270 | 40 5 10 55 55 10 . 75 . . 20 . . Destroy Leader 436 | . 10 60 94 40 10 . 168 10 10 34 . . Allied During Kill 702 | . . . . . . . 699 3 . . . . Successful Hack 83 | . . 20 4 13 22 . 5 . . 14 5 . Disable Machine 360 | . . 45 135 . . . 120 . . 60 . . Destroy Structure 544 | . . 85 139 . . . 212 . . 108 . . Lose Combat Pursuer 180 | . 15 . 30 . 15 . 15 . . 105 . . Influence Decreases 4522 | 35 55 290 585 670 177 . 420 1136 195 581 269 109 Entered New Map 1749 | . 2 12 145 285 31 . . 606 125 195 269 79 Time Decay 2323 | 35 53 178 380 365 86 . 360 510 70 286 . . Lost Part 370 | . . 100 60 20 60 . . . . 100 . 30 Lost Ally 80 | . . . . . . . 60 20 . . . . Squads Dispatched 22 | . . 1 3 4 1 . 9 . . 3 . 1 Investigation 6 | . . 1 2 1 1 . . . . 1 . . Extermination 5 | . . . . 2 . . 2 . . 1 . . Reinforcement 8 | . . . 1 1 . . 4 . . 1 . 1 Assault 2 | . . . . . . . 2 . . . . . Garrison 1 | . . . . . . . 1 . . . . . Intercept . | . . . . . . . . . . . . . Searches Triggered . | . . . . . . . . . . . . . Construction Impeded 1 | . . . . . . . 1 . . . . . Haulers Reinforced 1 | . . . . . . . 1 . . . . . Active Scanning Responses . | . . . . . . . . . . . . . Cargo Convoy Interrupts . | . . . . . . . . . . . . . Stealth | -11 -10 -9 -8 -7 -6 -6 -6 -6 -6 -5 -4 -4 --------- Run | Yrd Mat Mat Mat Fac Fac Was Fac Low Low Fac Fac DSF Distress Signals 3 | . . . 1 . . . 2 . . . . . Communications Jammed . | . . . . . . . . . . . . . Distress Signals . | . . . . . . . . . . . . . Times Spotted 150 | . 5 17 30 11 12 . 32 8 2 30 . 3 Peak Tracking Total 11 | . 3 7 7 4 6 . 10 4 3 11 . 3 Tactical Retreats 7 | . 1 . 2 . 1 . 1 . . 2 . . Traps | -11 -10 -9 -8 -7 -6 -6 -6 -6 -6 -5 -4 -4 ------- Run | Yrd Mat Mat Mat Fac Fac Was Fac Low Low Fac Fac DSF Traps Triggered 3 | . . . . . 1 . 1 . . . . 1 Indirectly . | . . . . . . . . . . . . . Trap Hack Attempts . | . . . . . . . . . . . . . Triggered . | . . . . . . . . . . . . . Disarmed 4 | . . . . 4 . . . . . . . . Reprogrammed . | . . . . . . . . . . . . . Reused . | . . . . . . . . . . . . . Traps Extracted . | . . . . . . . . . . . . . Installed . | . . . . . . . . . . . . . Triggered . | . . . . . . . . . . . . . Machines | -11 -10 -9 -8 -7 -6 -6 -6 -6 -6 -5 -4 -4 ---------- Run | Yrd Mat Mat Mat Fac Fac Was Fac Low Low Fac Fac DSF Machines Disabled 26 | . . 3 9 . . . 8 2 . 4 . . Max in Single Turn 4 | . . 2 4 . . . 1 2 . 2 . . Machines Repaired . | . . . . . . . . . . . . . Machines Dismantled . | . . . . . . . . . . . . . Machines Sabotaged . | . . . . . . . . . . . . . Overloaded Fab Kills . | . . . . . . . . . . . . . Hacking | -11 -10 -9 -8 -7 -6 -6 -6 -6 -6 -5 -4 -4 --------- Run | Yrd Mat Mat Mat Fac Fac Was Fac Low Low Fac Fac DSF Machines Accessed 15 | . . 3 3 3 2 . 1 1 . 1 1 . Terminals 12 | . . 3 2 3 1 . 1 . . 1 1 . Fabricators . | . . . . . . . . . . . . . Repair Stations 2 | . . . 1 . 1 . . . . . . . Recycling Units . | . . . . . . . . . . . . . Scanalyzers . | . . . . . . . . . . . . . Garrison Access . | . . . . . . . . . . . . . Total Hacks 46 | . . 9 11 8 6 . 1 7 . 2 2 . Successful 30 | . . 5 5 8 2 . 1 7 . 1 1 . Failed 16 | . . 4 6 . 4 . . . . 1 1 . Catastrophic 2 | . . 1 . . . . . . . 1 . . Database Lockouts . | . . . . . . . . . . . . . Manual . | . . . . . . . . . . . . . Terminals 33 | . . 9 9 8 2 . 1 . . 2 2 . Fabricators . | . . . . . . . . . . . . . Repair Stations 6 | . . . 2 . 4 . . . . . . . Recycling Units . | . . . . . . . . . . . . . Scanalyzers . | . . . . . . . . . . . . . Garrison Access . | . . . . . . . . . . . . . Terminal Hacks 29 | . . 5 5 8 1 . 1 7 . 1 1 . Record 13 | . . 1 3 2 . . . 7 . . . . Robot Analysis 1 | . . . . 1 . . . . . . . . Prototype ID Bank 1 | . . 1 . . . . . . . . . . Open DSF 3 | . . . . 1 . . 1 . . . 1 . Level Access Points 1 | . . 1 . . . . . . . . . . Branch Access Points 1 | . . . 1 . . . . . . . . . Alert Level 2 | . . 1 . 1 . . . . . . . . Locate Traps 2 | . . . . 1 1 . . . . . . . Disarm Traps 1 | . . . . 1 . . . . . . . . Maintenance Status 1 | . . . . 1 . . . . . . . . Zone Layout 3 | . . 1 1 . . . . . . 1 . . Fabricator Hacks . | . . . . . . . . . . . . . Repair Station Hacks 1 | . . . . . 1 . . . . . . . Scan Component 1 | . . . . . 1 . . . . . . . Recycling Unit Hacks . | . . . . . . . . . . . . . Scanalyzer . | . . . . . . . . . . . . . Garrison Access Hacks . | . . . . . . . . . . . . . Unauthorized Hacks . | . . . . . . . . . . . . . Terminals . | . . . . . . . . . . . . . Fabricators . | . . . . . . . . . . . . . Repair Stations . | . . . . . . . . . . . . . Recycling Units . | . . . . . . . . . . . . . Scanalyzers . | . . . . . . . . . . . . . Garrison Access . | . . . . . . . . . . . . . Data Cores Recovered 1 | . . . . . 1 . . . . . . . Used . | . . . . . . . . . . . . . Hacking Detections 10 | . . 2 3 2 2 . . . . 1 . . Full Trace Events 7 | . . 2 2 1 1 . . . . 1 . . Feedback Events 2 | . . . . . 1 . . . . 1 . . Corruption 2 | . . . . . 1 . . . . 1 . . Feedback Blocked . | . . . . . . . . . . . . . Robot Schematics Acquired . | . . . . . . . . . . . . . Robots Built . | . . . . . . . . . . . . . Authchips . | . . . . . . . . . . . . . Time . | . . . . . . . . . . . . . Total Robot Build Rating . | . . . . . . . . . . . . . Part Schematics Acquired . | . . . . . . . . . . . . . Parts Built . | . . . . . . . . . . . . . Authchips . | . . . . . . . . . . . . . Time . | . . . . . . . . . . . . . Total Part Build Rating . | . . . . . . . . . . . . . Parts Repaired . | . . . . . . . . . . . . . Time . | . . . . . . . . . . . . . Parts Recycled . | . . . . . . . . . . . . . Recycled Matter . | . . . . . . . . . . . . . Retrieved Matter . | . . . . . . . . . . . . . Retrieved Components . | . . . . . . . . . . . . . Parts Scanalyzed . | . . . . . . . . . . . . . Part Schematics Acquired . | . . . . . . . . . . . . . Parts Damaged . | . . . . . . . . . . . . . Bothacking | -11 -10 -9 -8 -7 -6 -6 -6 -6 -6 -5 -4 -4 ------------ Run | Yrd Mat Mat Mat Fac Fac Was Fac Low Low Fac Fac DSF Used RIF Installer . | . . . . . . . . . . . . . Robots Hacked . | . . . . . . . . . . . . . Non-combat . | . . . . . . . . . . . . . Combat . | . . . . . . . . . . . . . Robot Hacks Applied . | . . . . . . . . . . . . . Relay Couplers Released . | . . . . . . . . . . . . . Fabnet Peak Effective % . | . . . . . . . . . . . . . Robots Rewired . | . . . . . . . . . . . . . Allies Hacked . | . . . . . . . . . . . . . Hacks Repelled . | . . . . . . . . . . . . . Allies | -11 -10 -9 -8 -7 -6 -6 -6 -6 -6 -5 -4 -4 -------- Run | Yrd Mat Mat Mat Fac Fac Was Fac Low Low Fac Fac DSF Total Allies 21 | . . . . . . 21 . . . . . . Largest Group 21 | . . . . . . 21 12 3 . . . . Highest-Rated Group 813 | . . . . . . 813 423 118 . . . . Highest-Rated Ally 50 | . . . . . . 50 50 47 . . . . Total Orders . | . . . . . . . . . . . . . Ally Attacks 165 | . . . . . . . 163 2 . . . . Total Damage 7484 | . . . . . . . 7406 78 . . . . Kills 54 | . . . . . . . 53 1 . . . . Allies Corrupted . | . . . . . . . . . . . . . Allies Melted . | . . . . . . . . . . . . . Intel | -11 -10 -9 -8 -7 -6 -6 -6 -6 -6 -5 -4 -4 ------- Run | Yrd Mat Mat Mat Fac Fac Was Fac Low Low Fac Fac DSF Active Infowar (turns) 2847 | 108 126 . 97 . . . 365 1381 156 614 . . Sensors 2575 | . . . 97 . . . 327 1381 156 614 . . IFF 1197 | . . . . . . . 365 832 . . . . Seismic 234 | 108 126 . . . . . . . . . . . Triangulation 2311 | . . . . . . . 227 1381 93 610 . . Robot Analysis Total 1 | . . . . 1 . . . . . . . . Derelict Logs Recovered 2 | . . . . . . . . 2 . . . . Drone Launches . | . . . . . . . . . . . . . Drone Recoveries . | . . . . . . . . . . . . . Exploration | -11 -10 -9 -8 -7 -6 -6 -6 -6 -6 -5 -4 -4 ------------- Run | Yrd Mat Mat Mat Fac Fac Was Fac Low Low Fac Fac DSF Turns Passed 6658 | 159 150 500 895 873 381 259 1189 1381 156 628 8 79 Spaces Moved 4268 | 114 133 446 590 538 261 162 713 812 81 341 14 63 Core 104 | 5 . . . . 14 22 . . . . . 63 Treads 2121 | . . . 43 . 14 140 713 812 81 318 . . Legs 814 | . . . 43 538 233 . . . . . . . Wheels 1192 | 109 133 446 504 . . . . . . . . . Hover 37 | . . . . . . . . . . 23 14 . Flight . | . . . . . . . . . . . . . Fastest Speed 50 | 50 80 80 82 120 50 50 160 160 160 56 56 50 Average Speed 130 | 78 80 81 101 131 121 145 160 160 160 153 56 96 Slowest Speed 250 | 80 80 95 225 190 225 160 160 160 160 240 56 250 Overloaded Moves . | . . . . . . . . . . . . . Propulsion Burnouts . | . . . . . . . . . . . . . Robots Hopped . | . . . . . . . . . . . . . Potential Cave-ins . | . . . . . . . . . . . . . Cave-ins Triggered . | . . . . . . . . . . . . . Exploration Rate (%) 32 | 4 31 38 62 14 12 82 21 92 19 12 1 40 Regions Visited 12 Branch Regions 2 Pre-discovered Areas . | . . . . . . . . . . . . . Known Exits Taken 2 | . . 1 . . . . . . . . 1 . Unknown Exits Taken 8 | 1 1 . 1 1 . . 1 1 1 1 . . Scrap Searched 3 | . . . . . . . . 2 1 . . . Spaces Dug 30 | . . . . . . . . 30 . . . . Terrain Destroyed 403 | . . 112 147 . . . 5 39 33 67 . . Melee . | . . . . . . . . . . . . . Projectile 27 | . . . 3 . . . 5 9 . 10 . . AOE 376 | . . 112 144 . . . . 30 33 57 . . Terrain Rammed . | . . . . . . . . . . . . . Walls Destroyed . | . . . . . . . . . . . . . Machines Disabled . | . . . . . . . . . . . . . Actions | -11 -10 -9 -8 -7 -6 -6 -6 -6 -6 -5 -4 -4 --------- Run | Yrd Mat Mat Mat Fac Fac Was Fac Low Low Fac Fac DSF Total 4976 | 157 157 559 779 642 301 185 744 856 97 402 13 84 Wait 165 | . 2 55 34 38 1 . 4 11 7 8 . 5 Move 4257 | 113 132 445 589 537 261 161 712 811 80 340 13 63 Hop . | . . . . . . . . . . . . . Pick Up 95 | 16 3 14 26 9 5 2 1 3 1 12 . 3 Fast Attach 54 | 6 1 1 13 3 4 9 9 1 . 5 . 2 Attach 31 | 1 . 6 7 3 1 1 . 2 1 6 . 3 Detach 6 | . . . 1 . 1 1 . . . . . 3 Swap 50 | . 4 8 12 10 4 4 1 3 1 3 . . Drop 104 | 7 5 10 28 12 10 7 8 5 1 6 . 5 Fire 207 | 14 10 19 68 30 10 . 8 20 6 22 . . Melee . | . . . . . . . . . . . . . Ram 1 | . . 1 . . . . . . . . . . Kick . | . . . . . . . . . . . . . Crush 6 | . . . 1 . 4 . 1 . . . . . Escape Stasis . | . . . . . . . . . . . . . Rewire . | . . . . . . . . . . . . . Trap . | . . . . . . . . . . . . . Miscellaneous . | . . . . . . . . . . . . . Route ------- -11/Scrapyard -10/Materials -9/Materials (discovered 3 exits: *Mat x3) -8/Materials (discovered 3 exits: *Fac / Sto x2) -7/Factory -6/Factory -6/Waste -6/Factory -6/Lower Caves -6/Lower Caves -5/Factory -4/Factory -4/DSF History --------- Turn | Location | Event 22 | -11/Scrapyard | Discovered new exit (range 15) 160 | -11/Scrapyard | Entered Materials 276 | -10/Materials | Discovered new exit (range 14) 310 | -10/Materials | Entered another Materials area 310 | -9/Materials | Evolved 2 slots: Propulsion x2 631 | -9/Materials | Destroyed 10 combat bots 695 | -9/Materials | Lost 7 parts (1p4n1u1w) 763 | -9/Materials | Identified exit to Materials 810 | -9/Materials | Entered another Materials area 810 | -8/Materials | Evolved 2 slots: Propulsion x1, Utility x1 814 | -8/Materials | Lost 3 parts (2n1w) 966 | -8/Materials | Build established: Mutant 1306 | -8/Materials | Identified exit to Storage 1599 | -8/Materials | Discovered new exit (range 4) 1705 | -8/Materials | Entered Factory 1705 | -7/Factory | Evolved 2 slots: Power x1, Utility x1 1917 | -7/Factory | Build established: Scavenger-Mutant 2570 | -7/Factory | Discovered new exit (range 7) 2578 | -7/Factory | Entered another Factory area 2578 | -6/Factory | Evolved 2 slots: Propulsion x1, Utility x1 2807 | -6/Factory | Spotted B-75 Beast 2952 | -6/Factory | Released all parts (4) 2959 | -6/Factory | Sucked down chute 2959 | -6/Factory | Entered Waste 2960 | -6/Waste | Met a frightened Derelict 2960 | -6/Waste | Joined by Warlord forces that had cleared the area 2983 | -6/Waste | Lost 12 parts (2p5n4u1w) 2988 | -6/Waste | Found Damper Plating 3019 | -6/Waste | Found Damper Plating 3124 | -6/Waste | Found Damper Plating 3201 | -6/Waste | Discovered new exit (range 10) 3218 | -6/Waste | Entered Factory 3218 | -6/Factory | Accompanied by 12 allies 3794 | -6/Factory | Discovered new exit (range 11) 3980 | -6/Factory | Lost 4 allies 4268 | -6/Factory | First assault squad dispatched 4343 | -6/Factory | Garrison activated, responded to threat 4407 | -6/Factory | Entered Lower Caves 4407 | -6/Lower Caves | Accompanied by 3 allies 4700 | -6/Lower Caves | Encountered a Warlord checkpoint 4822 | -6/Lower Caves | Core integrity fell below 50% 4935 | -6/Lower Caves | Attracted the attention of an 0b10 checkpoint 5099 | -6/Lower Caves | Learned Factory garrison access intel 5124 | -6/Lower Caves | Learned 8 Research zone layouts 5124 | -6/Lower Caves | Learned Research trap positions 5124 | -6/Lower Caves | Learned Armory stockpile data 5124 | -6/Lower Caves | Learned Factory security intel 5224 | -6/Lower Caves | Learned Factory terminal intel 5232 | -6/Lower Caves | Found DCF Scrap (13 items) 5597 | -6/Lower Caves | Discovered new exit (range 8) 5723 | -6/Lower Caves | Attacked by a delusional Derelict stockpiling parts 5788 | -6/Lower Caves | Entered another Lower Caves area 5903 | -6/Lower Caves | Discovered new exit (range 14) 5944 | -6/Lower Caves | Entered Factory 5944 | -5/Factory | Evolved 2 slots: Utility x1, Weapon x1 5946 | -5/Factory | Loaded intel: 27 terminal locations 5947 | -5/Factory | Loaded intel: 4 garrison access locations 6256 | -5/Factory | Build established: Scavenger-Tank 6359 | -5/Factory | Destroyed 9 combat bots 6555 | -5/Factory | Released all parts (7) 6568 | -5/Factory | Discovered new exit (range 9) 6572 | -5/Factory | Entered another Factory area 6572 | -4/Factory | Evolved 2 slots: Propulsion x1, Utility x1 6574 | -4/Factory | Identified exit to DSF 6580 | -4/Factory | Entered DSF 6583 | -4/DSF | Lost 8 parts (1p3n1u3w) 6607 | -4/DSF | Additional patrols routed to DSF 6645 | -4/DSF | Core integrity fell below 50% 6657 | -4/DSF | Core integrity fell below 20% 6659 | -4/DSF | Destroyed by X-77 Beamer with Gatling Laser Last Messages --------------- recycling 6 matter... 06633_ Imp. Gravmag System destroyed. 06635_ Imp. Field Recycling Unit collects Adv. Salvage Targeting Computer, recycling 6 matter... 06637_ Imp. Gravmag System destroyed. 06642_ Acquired Hvy. Mass Driver. 06644_ Dropped Energy Filter. 06645_ Dropped Imp. Sensor Array. 06645_ Acquired Hvy. Mass Driver. 06649_ Triggered Alarm Trap. 06649_ An alarm sounds. 06650_ Knocked back. 06652_ Acquired Lgt. Particle Reactor. 06652_ Lgt. Particle Reactor destroyed. 06652_ Knocked back. 06654_ Acquired Lgt. Particle Reactor. 06654_ Slug penetrates Wall. 06656_ Knocked back. 06658_ Dropped Lgt. Particle Reactor. 06659_ Dropped Imp. Field Recycling Unit. Map ----- +----------------------------------------------------+ | | | | | | | | | ????????????????????????????????????????????? | | ????????????????????????????????????????????? | | ????????????????????????????????????????????? | | ????????????????????????????????????????????? | | ????????????????????????????????#""?????????? | | ????????????????????????????????#"#?????????? | | ???????????????########????????##"####??????? | | ???????????????# [[[!!#########"""""#??????? | | ???????????# # [[[!!# # ##"""""#??????? | | ????????? ""##"????? | | ????????? ! """""????? | | ????????????????## ### # ## ""###????? | | ???????????????????????# # ### ###??????? | | ???????????????????????########## ##???????? | | ??????????????????????????????# #???????? | | ??????????????????????????????# #???????? | | ??????????????????????????????### ##???????? | | ??????????????????????????????#!! #???????? | | ??????????????????????????????# ! #???????? | | ????????????????????????###???# ! #???????? | | ???????????????????????##!####### ###??????? | | ?????????????????#????##*@*# ## #??????? | | ????????????????# #;** ; % ## #??????? | | ?????????????? % x #??????? | | ???????????? H % x #??????? | | ??????????? %#??????? | | ?????????? #===##A A##!!!# ;# !]#??????? | | ???????????#=???## #?#!!!# ## !] #??????? | | ?????????????????# ??###############??????? | | ????????????????!! ????????????????????????? | | ???????????????#!! ?????????????????????????? | | ???????????????#!! ?????????????????????????? | | ???????????????###??????????????????????????? | | ????????????????????????????????????????????? | | ????????????????????????????????????????????? | | ????????????????????????????????????????????? | | ????????????????????????????????????????????? | | ????????????????????????????????????????????? | | ????????????????????????????????????????????? | | ????????????????????????????????????????????? | | ????????????????????????????????????????????? | | ????????????????????????????????????????????? | | ????????????????????????????????????????????? | | ????????????????????????????????????????????? | | ????????????????????????????????????????????? | | ????????????????????????????????????????????? | +----------------------------------------------------+ Best States ------------- Heat Dissipation 67 Energy Generation 37 Energy Capacity 550 Matter Stores 300 Matter Capacity 450 Sight Range 16 Robot Scan Range 15 Terrain Scan Density 210 Armor Coverage 1825 Resistance: KI 20 Resistance: EM 90 Propulsion Shielding 66 Evasion (%) 55 Targeting Accuracy 6 Recoil Reduction 6 Particle Charging 20 Salvage Targeting 2 Offensive Hacking 10 Item Schematics ----------------- None Robot Schematics ------------------ None Fabricated ------------ Nothing Repaired ---------- Nothing Alien Tech Used ----------------- None Achievements -------------- Backstab Librarian Turtlemind We Are Legion Challenges ------------ None Game ------ Seed OvertunedCobblerCharger Manual? 0 Play Time 02:53:03 Cumulative 17.2 hours Start 2025.06.24 @ 22:03:54 End 2025.06.27 @ 12:54:47 Sessions 5 Manual Loads 0 Difficulty Rogue Special Mode None Game No. 8 Rogue 8 Adventurer 0 Explorer 0 Win Type - Total 0 Types 0/0/0/0/0/0/0/0/0/0 Lore% 3 Gallery% 16 Achievement% 16 Wizard Run 0 Options --------- Layout 0 ASCII 0 Keyboard 0 Movement Numpad Keybinds 0 Fullscreen 1 Font 18/SmallcapsGlow Map View 76x50 Zoom Use 0% Tactical HUD 1 Map Filters NONE Filters NONE Steam 1 RUN: 9c914a70-4a99-4c31-b3e1-1e8bb88abbfd